Workbook

Sheet ReadMe
B2: REal WAter Savings in agricultural systems (REWAS)
B3: A tool to evaluate field scale interventions at system scale levels
B4: ADB, TA9414
B6: Client
C7: FAO-RAP
C8: Louise Whiting (louise.whiting@fao.org)
C9: Hugh Turral (hugh.turral@gmail.com)
B11: Contact, questions, recommendations
C12: Alexander Kaune (a.kaune@futurewater.nl)
C13: Peter Droogers (p.droogers@futurewater.nl)
B15: References, documentation
C16: Kaune, A., P. Droogers, J. van Opstal, P. Steduto,. C. Perry. 2020. REWAS REal WAter Savings tool: Technical document. FutureWater/FAO Report

Sheet Main
B2: Number of scenarios: | C2: 2
B5: INPUT DATA | K5: PLOT | N5: PLOT
D6: Scenario
D7: Reference | E7: Sc 20% | F7: Sc 40% | G7: Sc 50% | H7: Scenario D | I7: Scenario E | N7: Select scenario to plot: | O7: Reference
B8: FIELD | N8: System plot:
B9: Rainfall | C9: (mm) | D9: 50 | E9: 170.6 | F9: 170.6 | G9: =+F9 -> 170.6 | H9: 170.6 | I9: 170.6 | K9: =HLOOKUP($O$7,$D$7:$I$98,ROW()-ROW($O$7)+1,FALSE) -> 50 | N9: Size (%) | O9: 1
B10: Irrigation | C10: (mm) | D10: 1000 | E10: 450 | F10: 360 | G10: 500 | H10: 500 | I10: 500 | K10: 1000 | N10: Font (pt) | O10: 10
B11: Crop Transpiration | C11: (mm) | D11: 480 | E11: 424.1 | F11: 424.1 | G11: 422.4 | H11: 422.4 | I11: 422.4 | K11: 480 | N11: Follow The Water plot:
B12: Soil Evaporation | C12: (mm) | D12: 120 | E12: 107.3 | F12: 107.3 | G12: 120 | H12: 120 | I12: 120 | K12: 120 | N12: Size (%) | O12: 1
B13: Drainage | C13: (mm) | D13: 330.4 | E13: 151.2 | F13: 61.2 | G13: 10.5 | H13: 10.5 | I13: 10.5 | K13: 330.4 | N13: Font (pt) | O13: 12
B14: Percolation | C14: (mm) | D14: 141.6 | E14: 87.3 | F14: 87.3 | G14: 4.5 | H14: 4.5 | I14: 4.5 | K14: 141.6 | N14: Plots can also be moved and resized with mouse
B15: Yield | C15: (kg/ha) | D15: 3700 | E15: 5.324 | F15: 5.324 | G15: 2800 | H15: 2800 | I15: 2800 | K15: 3700
B17: SYSTEM
B18: Area | C18: (ha) | D18: 394200 | E18: 394200 | F18: 394200 | G18: 394200 | H18: 394200 | I18: 394200 | K18: =HLOOKUP($O$7,$D$7:$I$98,ROW()-ROW($O$7)+1,FALSE) -> 394200
B19: Recoverable drainage fraction RD | C19: (%) | D19: 0.8 | E19: 0.8 | F19: 0.8 | G19: 0.8 | H19: 0.8 | I19: 0.8
B20: Recoverable percolation fraction RP | C20: (%) | D20: 0.7 | E20: 0.7 | F20: 0.7 | G20: 0.7 | H20: 0.7 | I20: 0.7
K21: =HLOOKUP($O$7,$D$7:$I$98,ROW()-ROW($O$7)+1,FALSE) -> 0
B22: RESULTS
D23: Scenario
D24: =+D7 -> Reference | E24: Sc 20% | F24: Sc 40% | G24: Sc 50% | H24: Scenario D | I24: Scenario E
B25: RESULTS FIELD
B26: Consumption, beneficial BC | C26: (mm) | D26: =D11 -> 480 | E26: 424.1 | F26: 424.1 | G26: 422.4 | H26: 422.4 | I26: 422.4 | K26: =HLOOKUP($O$7,$D$7:$I$98,ROW()-ROW($O$7)+1,FALSE) -> 480
B27: Consumption, non-beneficial NBC | C27: (mm) | D27: 120 | E27: 107.3 | F27: 107.3 | G27: 120 | H27: 120 | I27: 120 | K27: 120
B28: Return flows | C28: (mm) | D28: =D13+D14 -> 472 | E28: 238.5 | F28: 148.5 | G28: 15 | H28: 15 | I28: 15 | K28: 472
B29: Storage change CS (negative = unsustainable overconsumption) | C29: (mm) | D29: =D48-D49 -> -22 | E29: =E48-E49 -> -149.3 | F29: -149.3 | G29: =G48-G49 -> 113.2 | H29: 113.2 | I29: 113.2 | K29: -22
B30: Apparent Water Savings FWS | C30: (mm) | D30: - | E30: =+$D10-E10 -> 550 | F30: =+$D10-F10 -> 640 | G30: =+$D10-G10 -> 500 | H30: =+$D10-H10 -> 500 | I30: =+$D10-I10 -> 500 | K30: -
B31: Percentage of Apparent Water Savings %FWS | C31: (%) | D31: - | E31: =(E30/$D$48) -> 0.5238095238 | F31: =(F30/$D$48) -> 0.6095238095 | G31: =(G30/$D$48) -> 0.4761904762 | H31: =(H30/$D$48) -> 0.4761904762 | I31: =(I30/$D$48) -> 0.4761904762 | K31: -
B33: RESULTS SYSTEM
B34: Consumption, beneficial BC | C34: (MCM) | D34: =D54 -> 1892.16 | E34: =E54 -> 1671.8022 | F34: 1671.8022 | G34: =G54 -> 1665.1008 | H34: 1665.1008 | I34: 1665.1008 | K34: =MAX(0,HLOOKUP($O$7,$D$7:$I$98,ROW()-ROW($O$7)+1,FALSE)) -> 1892.16
B35: Consumption, non-beneficial NBC | C35: (MCM) | D35: =D55 -> 473.04 | E35: 422.9766 | F35: 422.9766 | G35: =G55 -> 473.04 | H35: 473.04 | I35: 473.04 | K35: =MAX(0,HLOOKUP($O$7,$D$7:$I$98,ROW()-ROW($O$7)+1,FALSE)) -> 473.04
B36: Return flows, recoverable RF | C36: (MCM) | D36: =D61+D64 -> 1432.68048 | E36: =E61+E64 -> 717.71994 | F36: 433.89594 | G36: =G61+G64 -> 45.5301 | H36: 45.5301 | I36: 45.5301 | K36: =MAX(0,HLOOKUP($O$7,$D$7:$I$98,ROW()-ROW($O$7)+1,FALSE)) -> 1432.68048
B37: Return flows, non-recoverable NRF | C37: (MCM) | D37: =D62+D65 -> 427.94352 | E37: 222.44706 | F37: 151.49106 | G37: =G62+G65 -> 13.5999 | H37: 13.5999 | I37: 13.5999 | K37: =MAX(0,HLOOKUP($O$7,$D$7:$I$98,ROW()-ROW($O$7)+1,FALSE)) -> 427.94352
B38: Storage change CS | C38: (MCM) | D38: =D67-D68 -> -86.724 | E38: =E67-E68 -> -588.5406 | F38: -588.5406 | G38: =G67-G68 -> 446.2344 | H38: 446.2344 | I38: 446.2344 | K38: =HLOOKUP($O$7,$D$7:$I$98,ROW()-ROW($O$7)+1,FALSE) -> -86.724
B39: Water Productivity WP | C39: (kg/m³) | D39: =(D58/(D34+D35)) -> 0.6166666667 | E39: 0.001001881822 | F39: 0.001001881822 | G39: 0.5162241888 | H39: 0.5162241888 | I39: 0.5162241888 | K39: =HLOOKUP($O$7,$D$7:$I$98,ROW()-ROW($O$7)+1,FALSE) -> 0.6166666667
B40: Real Water Savings RWS | C40: (MCM) | D40: - | E40: =($D$35-E35)+($D$37-E37) -> 255.55986 | F40: =($D$35-F35)+($D$37-F37) -> 326.51586 | G40: =($D$35-G35)+($D$37-G37) -> 414.34362 | H40: =($D$35-H35)+($D$37-H37) -> 414.34362 | I40: =($D$35-I35)+($D$37-I37) -> 414.34362 | K40: =HLOOKUP($O$7,$D$7:$I$98,ROW()-ROW($O$7)+1,FALSE) -> -
B41: Percentage of Real Water Savings %RWS | C41: (%) | D41: - | E41: =(E40/$D$67) -> 0.06174285714 | F41: =(F40/$D$67) -> 0.07888571429 | G41: =(G40/$D$67) -> 0.1001047619 | H41: =(H40/$D$67) -> 0.1001047619 | I41: =(I40/$D$67) -> 0.1001047619 | K41: =HLOOKUP($O$7,$D$7:$I$98,ROW()-ROW($O$7)+1,FALSE) -> -
B44: INTERMEDIATE RESULTS (only user internally, do no modify
D45: Scenario
D46: =+D7 -> Reference | E46: Sc 20% | F46: Sc 40% | G46: Sc 50% | H46: Scenario D | I46: Scenario E
B47: FIELD
B48: InflowTotal | C48: (mm) | D48: =SUM(D9:D10) -> 1050 | E48: 620.6 | F48: 530.6 | G48: 670.6 | H48: 670.6 | I48: 670.6 | K48: =HLOOKUP($O$7,$D$7:$I$98,ROW()-ROW($O$7)+1,FALSE) -> 1050
B49: OutflowTotal | C49: (mm) | D49: =SUM(D11:D14) -> 1072 | E49: 769.9 | F49: 679.9 | G49: 557.4 | H49: 557.4 | I49: 557.4 | K49: =HLOOKUP($O$7,$D$7:$I$98,ROW()-ROW($O$7)+1,FALSE) -> 1072
B51: SYSTEM
B52: =B9 -> Rainfall | C52: (MCM) | D52: =D9*D$18*10/1000000 -> 197.1 | E52: 672.5052 | F52: 672.5052 | G52: 672.5052 | H52: 672.5052 | I52: 672.5052 | K52: =HLOOKUP($O$7,$D$7:$I$98,ROW()-ROW($O$7)+1,FALSE) -> 197.1
B53: Irrigation | C53: (MCM) | D53: 3942 | E53: 1773.9 | F53: 1419.12 | G53: 1971 | H53: 1971 | I53: 1971 | K53: 3942
B54: Crop Transpiration | C54: (MCM) | D54: 1892.16 | E54: 1671.8022 | F54: 1671.8022 | G54: 1665.1008 | H54: 1665.1008 | I54: 1665.1008 | K54: 1892.16
B55: Soil Evaporation | C55: (MCM) | D55: 473.04 | E55: 422.9766 | F55: 422.9766 | G55: 473.04 | H55: 473.04 | I55: 473.04 | K55: 473.04
B56: Drainage | C56: (MCM) | D56: 1302.4368 | E56: 596.0304 | F56: 241.2504 | G56: 41.391 | H56: 41.391 | I56: 41.391 | K56: 1302.4368
B57: Percolation | C57: (MCM) | D57: 558.1872 | E57: 344.1366 | F57: 344.1366 | G57: 17.739 | H57: 17.739 | I57: 17.739 | K57: 558.1872
B58: Production | C58: (Mkg) | D58: =(D15*D$18)/1000000 -> 1458.54 | E58: 2.0987208 | F58: 2.0987208 | G58: 1103.76 | H58: 1103.76 | I58: 1103.76 | K58: 1458.54
B60: DrainageTotal | C60: (MCM) | D60: =D56 -> 1302.4368 | E60: =E56 -> 596.0304 | F60: 241.2504 | G60: 41.391 | H60: 41.391 | I60: 41.391 | K60: =HLOOKUP($O$7,$D$7:$I$98,ROW()-ROW($O$7)+1,FALSE) -> 1302.4368
B61: DrainageRecoverable | C61: (MCM) | D61: =(D60)*D19 -> 1041.94944 | E61: 476.82432 | F61: 193.00032 | G61: 33.1128 | H61: 33.1128 | I61: 33.1128 | K61: 1041.94944
B62: DrainageNonRecoverable | C62: (MCM) | D62: =(D60)*(1-D19) -> 260.48736 | E62: 119.20608 | F62: 48.25008 | G62: 8.2782 | H62: 8.2782 | I62: 8.2782 | K62: 260.48736
B63: PercolationTotal | C63: (MCM) | D63: =D57 -> 558.1872 | E63: 344.1366 | F63: 344.1366 | G63: 17.739 | H63: 17.739 | I63: 17.739 | K63: 558.1872
B64: PercolationRecoverable | C64: (MCM) | D64: =(D63)*D20 -> 390.73104 | E64: 240.89562 | F64: 240.89562 | G64: 12.4173 | H64: 12.4173 | I64: 12.4173 | K64: 390.73104
B65: PercolationNonRecoverable | C65: (MCM) | D65: =(D63)*(1-D20) -> 167.45616 | E65: 103.24098 | F65: 103.24098 | G65: 5.3217 | H65: 5.3217 | I65: 5.3217 | K65: 167.45616
B67: Inflow Total | C67: (MCM) | D67: =D52+D53 -> 4139.1 | E67: 2446.4052 | F67: 2091.6252 | G67: 2643.5052 | H67: 2643.5052 | I67: 2643.5052 | K67: =HLOOKUP($O$7,$D$7:$I$98,ROW()-ROW($O$7)+1,FALSE) -> 4139.1
B68: Outflow Total | C68: (MCM) | D68: =D61+D62+D64+D65+D54+D55 -> 4225.824 | E68: 3034.9458 | F68: 2680.1658 | G68: 2197.2708 | H68: 2197.2708 | I68: 2197.2708 | K68: =HLOOKUP($O$7,$D$7:$I$98,ROW()-ROW($O$7)+1,FALSE) -> 4225.824

Sheet Egypt_01
A1: EFFECTIVE MANAGEMENT OF ON-FARM IRRIGATION FOR SOME MAJOR CROPS IN EGYPT USING CROPWAT MODEL Atef Swelam, Samia, M. El-Marsafawy* and Maha, Elbana***
A2: Misr J. Ag. Eng., 2019, 36 (1): 105 - 122
A3: https://journals.ekb.eg/article_94443.html
A5: Selected: 2013/2014; wheat; Giza, Egypt
A6: 26-Nov-2014 / 30-Apr-2015
A7: Scenarios used: 1, 5, 10
A9: ETc (mm) | B9: 386
A10: Days | B10: =DATE(2015,4,30)-DATE(2014,11,26) -> 155
A11: ETc (mm); Fig 7 | C11: 386 | D11: 386 | E11: 386 | F11: 386 | G11: 386
A12: T (%); estimated | C12: 0.8 | D12: 0.8 | E12: 0.8 | F12: 0.8 | G12: 0.8
A13: Drain (%); estimated | C13: 0.7 | D13: 0.7 | E13: 0.7 | F13: 0.7 | G13: 0.7
A15: INPUT DATA
C16: Scenario
C17: Reference | D17: Sc 1 | E17: Sc 5 | F17: Sc 10
A18: FIELD
A19: Rainfall | B19: (mm) | C19: 50 | D19: 50 | E19: 50 | F19: 50
A20: Irrigation | B20: (mm) | C20: =7*55 -> 385 | D20: =7*40 -> 280 | E20: =7*80 -> 560 | F20: =6*80 -> 480
A21: Crop Transpiration | B21: (mm) | C21: =+C11*C12 -> 308.8 | D21: =+D11*D12 -> 308.8 | E21: 308.8 | F21: 308.8
A22: Soil Evaporation | B22: (mm) | C22: =+C11-C21 -> 77.2 | D22: =+D11-D21 -> 77.2 | E22: 77.2 | F22: 77.2
A23: Drainage | B23: (mm) | C23: =+(C19+C20-C21-C22)*C13 -> 34.3 | D23: =+(D19+D20-D21-D22)*D13 -> -39.2 | E23: 156.8 | F23: 100.8
A24: Percolation | B24: (mm) | C24: =+(C19+C20-C21-C22)*(1-C13) -> 14.7 | D24: =+(D19+D20-D21-D22)*(1-D13) -> -16.8 | E24: 67.2 | F24: 43.2
A25: Yield | B25: (kg/ha)
A27: SYSTEM
A28: Area | B28: (ha) | C28: 1413750 | D28: 1413750 | E28: 1413750 | F28: 1413750
A29: Recoverable drainage fraction RD | B29: (%) | C29: 0.7 | D29: 0.7 | E29: 0.7 | F29: 0.7
A30: Recoverable percolation fraction RP | B30: (%) | C30: 0.7 | D30: 0.7 | E30: 0.7 | F30: 0.7

Sheet Iran_01
A1: Eﬀect and side-eﬀect assessment of diﬀerent agricultural water saving measures in an integrated framework. Leila Goli Raeisi, Saeed Morid, Majid Delavar, Raghavan Srinivasan
A2: Agr Wat Management. 2019
A5: Selected: 2013/2014; wheat; Giza, Egypt
A6: 26-Nov-2014 / 30-Apr-2015
A7: Scenarios used: 1, 5, 10
A9: ETa (mm) | C9: 600 | D9: 581 | E9: 561 | F9: 528
A10: T (%); estimated | C10: 0.8 | D10: 0.8 | E10: 0.8 | F10: 0.8
A11: Return (mm) | C11: 472 | D11: 280 | E11: 80 | F11: 15
A12: Drain (%); estimated | C12: 0.7 | D12: 0.7 | E12: 0.7 | F12: 0.7
A15: INPUT DATA
C16: Scenario
C17: Reference | D17: Sc 20% | E17: Sc 40% | F17: Sc 50%
A18: FIELD
A19: Rainfall | B19: (mm) | C19: 360 | D19: =+C19 -> 360 | E19: =+D19 -> 360 | F19: 360
A20: Irrigation | B20: (mm) | C20: 1000 | D20: 800 | E20: 600 | F20: 500
A21: Crop Transpiration | B21: (mm) | C21: =+C9*C10 -> 480 | D21: =+D9*D10 -> 464.8 | E21: 448.8 | F21: 422.4
A22: Soil Evaporation | B22: (mm) | C22: =+C9-C21 -> 120 | D22: =+C22 -> 120 | E22: =+D22 -> 120 | F22: 120
A23: Drainage | B23: (mm) | C23: =+C11*C12 -> 330.4 | D23: =+D11*D12 -> 196 | E23: 56 | F23: 10.5
A24: Percolation | B24: (mm) | C24: =+C11-C23 -> 141.6 | D24: =+D11-D23 -> 84 | E24: 24 | F24: 4.5
A25: Yield | B25: (kg/ha) | C25: 3700 | D25: 3400 | E25: 3200 | F25: 2800
A27: SYSTEM
A28: Area | B28: (ha) | C28: 394200 | D28: =+C28 -> 394200 | E28: =+D28 -> 394200 | F28: 394200
A29: Recoverable drainage fraction RD | B29: (%) | C29: 0.8 | D29: 0.8 | E29: 0.8 | F29: 0.8
A30: Recoverable percolation fraction RP | B30: (%) | C30: 0.7 | D30: 0.7 | E30: 0.7 | F30: 0.7
